bitfinex-derivatives/quotes_SOLF0:USTF0_20240830
["timestamp","ask_amount","ask_price","bid_price","bid_amount"]
[1725021612135,0.04757051,139.7,139.67,0.04554615]
[1725021612726,3.62627051,139.7,139.67,0.04554615]
[1725021612922,0.04757051,139.7,139.67,0.04554615]
[1725021613129,42.49,139.77,139.67,0.04554615]
[1725021613327,37.84643068,139.79,139.68,34.33]
[1725021613531,34.33,139.77,139.69,1.3852]
[1725021613826,3.5785,139.7,139.69,1.3852]
[1725021614026,0.05376976,139.71,139.69,1.3852]
[1725021617428,0.05376976,139.71,139.68,0.05412215]
[1725021618527,3.5785,139.7,139.68,0.05412215]
[1725021619331,3.5788,139.69,139.68,0.05412215]
[1725021620233,34.36833981,139.71,139.68,0.05412215]
[1725021620430,27.19,139.71,139.68,0.05412215]
[1725021620630,20.05,139.71,139.68,0.05412215]
[1725021620831,3.5788,139.69,139.68,0.05412215]
[1725021621137,20.04,139.69,139.68,0.05412215]
[1725021621433,16.40569677,139.69,139.6,1.3202]
[1725021621626,27.19,139.67,139.6,1.3202]
[1725021621928,34.33,139.69,139.6,1.3202]
[1725021622133,30.77,139.69,139.6,4.9011]
[1725021622325,27.29398525,139.69,139.6,1.3202]
[1725021622527,0.04779372,139.66,139.63,0.05278104]
[1725021622723,34.33,139.71,139.63,0.05278104]
[1725021622933,8.16,139.71,139.63,0.05278104]
[1725021623144,3.64036049,139.72,139.63,0.05278104]
[1725021623332,3.579,139.69,139.62,35.6966]
[1725021623637,34.33,139.73,139.62,35.6966]
[1725021623830,0.05134298,139.67,139.64,0.05269037]
[1725021624032,0.05155745,139.67,139.65,34.33]
[1725021624235,37.99183754,139.75,139.65,34.33]
[1725021624436,3.5782,139.72,139.67,3.5791]
[1725021624736,3.5782,139.72,139.68,2.6836]
[1725021624927,3.5776,139.74,139.68,2.6836]
[1725021625238,3.5776,139.74,139.7,0.04734214]
[1725021625239,0.05498912,139.72,139.7,0.04734214]
[1725021625634,0.05498912,139.72,139.71,3.5783]
[1725021625834,0.05498912,139.72,139.7,0.04734214]
[1725021626932,3.63308912,139.72,139.7,0.04734214]
[1725021627134,0.05498912,139.72,139.7,0.04734214]
[1725021627334,8.16,139.78,139.7,0.04734214]
[1725021627533,71.09,139.79,139.71,3.5781]
[1725021627837,34.33,139.77,139.68,2.6836]
[1725021628536,0.04738695,139.74,139.71,0.05351201]
[1725021631338,3.62498695,139.74,139.71,3.63161201]
[1725021631637,0.04738695,139.74,139.71,0.05351201]
[1725021632033,3.5778,139.73,139.71,0.05351201]
[1725021632837,3.62488695,139.74,139.71,0.05351201]
[1725021633240,3.62488695,139.74,139.71,3.63161201]
[1725021634749,0.04738695,139.74,139.71,3.63161201]
[1725021635341,3.57546722,139.83,139.72,34.33]
[1725021635544,34.33,139.83,139.72,34.33]
[1725021635844,3.5761,139.8,139.75,3.5772]
[1725021636044,3.5761,139.8,139.72,34.33]
[1725021636238,34.33,139.81,139.72,34.33]
[1725021636544,3.5763,139.79,139.75,3.62937205]
[1725021637436,34.33,139.81,139.75,0.05227205]
[1725021637942,34.33,139.79,139.75,0.05227205]
[1725021638146,3.5769,139.77,139.75,0.05227205]
[1725021638535,3.5766,139.78,139.75,0.05227205]
[1725021638737,42.13,139.82,139.75,0.05227205]
[1725021639050,3.5764,139.79,139.75,3.62937205]
[1725021639249,42.13,139.82,139.75,3.62937205]
[1725021639444,42.13,139.82,139.75,0.05227205]
[1725021639644,3.63311003,139.83,139.77,3.5765]
[1725021639645,3.5758,139.81,139.77,3.5765]
[1725021639942,3.53121003,139.83,139.78,0.05296119]
[1725021640144,3.53121003,139.83,139.79,0.04737469]
[1725021640436,34.4289,139.86,139.79,0.04737469]
[1725021640744,42.2289,139.86,139.79,0.04737469]
[1725021641048,7.8,139.85,139.79,0.04737469]
[1725021641450,34.33,139.84,139.79,0.04737469]
[1725021641650,3.576,139.8,139.79,0.04737469]
[1725021643646,3.5759,139.81,139.79,0.04737469]
[1725021646243,34.33,139.84,139.79,0.04737469]
[1725021647249,3.5758,139.81,139.79,0.04737469]
[1725021649844,3.5753,139.83,139.8,3.576]
[1725021650056,7.8,139.85,139.79,0.04737469]
[1725021650358,31.01901459,139.86,139.79,0.04737469]
[1725021650552,3.5752,139.83,139.8,3.5758]
[1725021651058,3.5752,139.83,139.8,3.5759]
[1725021651447,3.5752,139.83,139.79,0.04737469]
[1725021652451,3.5752,139.83,139.8,3.5758]
[1725021653848,3.5752,139.83,139.81,3.5757]
[1725021654255,38.43901459,139.86,139.79,0.04737469]
[1725021654256,3.55901459,139.86,139.79,0.04737469]
[1725021654553,27.46,139.87,139.79,0.04737469]
[1725021654748,3.5746,139.86,139.83,3.575]
[1725021654951,7.20792882,139.86,139.83,3.62305949]
[1725021655159,3.63332882,139.86,139.83,0.04805949]
[1725021655347,7.42,139.92,139.84,27.46]
[1725021655547,369.88,139.94,139.87,0.04762582]
[1725021655951,3.5729,139.92,139.89,3.5735]
[1725021656162,3.5729,139.92,139.89,3.62019926]
[1725021656547,34.88,139.94,139.89,3.62019926]
[1725021656752,27.46,139.93,139.89,0.04669926]
[1725021657163,3.5733,139.91,139.89,0.04669926]
[1725021657358,3.58077551,139.9,139.81,2.805]
[1725021657557,27.46,139.88,139.81,2.805]
[1725021658056,34.31,139.87,139.81,2.805]
[1725021658261,3.5751,139.84,139.81,2.805]
[1725021658462,3.62063342,139.84,139.81,2.85309111]
[1725021658759,3.5752,139.83,139.81,0.04809111]
[1725021659661,0.04553342,139.84,139.81,0.04809111]
[1725021659853,0.04553342,139.84,139.81,3.62369111]
[1725021660158,3.62053342,139.84,139.81,3.62369111]
[1725021661053,3.62053342,139.84,139.81,0.04809111]
[1725021661254,34.35553342,139.84,139.81,0.04809111]
[1725021661651,34.31,139.82,139.81,0.04809111]
[1725021661851,34.31,139.82,139.76,2.6113]
[1725021662762,0.04897155,139.8,139.78,0.05407229]
[1725021663761,3.59971147,139.86,139.78,34.36407229]
[1725021663961,34.31,139.88,139.78,34.36407229]
[1725021664161,3.5748,139.85,139.81,3.5756]
[1725021664658,3.56907955,139.88,139.79,35.7221]
[1725021664859,0.0953,139.92,139.79,35.7221]
[1725021664860,0.05220996,139.85,139.82,0.04546718]
[1725021665062,0.04915196,139.85,139.82,0.04551341]
[1725021665568,0.04915196,139.85,139.83,3.5752]
[1725021666061,0.04915196,139.85,139.82,0.04551341]
[1725021666677,0.04915196,139.85,139.84,3.5749]
[1725021666976,0.04915196,139.85,139.82,0.04551341]
[1725021667164,0.04915196,139.85,139.82,3.62081341]
[1725021667372,3.62395196,139.85,139.82,3.62081341]
[1725021667567,0.04915196,139.85,139.82,3.62081341]
[1725021667777,0.04915196,139.85,139.82,0.04551341]
[1725021668479,0.04915196,139.85,139.84,3.5749]
[1725021670168,0.04915196,139.85,139.82,0.04551341]
[1725021670865,3.62385196,139.85,139.82,0.04551341]
[1725021671279,0.04915196,139.85,139.83,3.5751]
[1725021671480,0.04915196,139.85,139.82,0.04551341]
[1725021671875,0.04915196,139.85,139.84,3.5749]
[1725021674874,3.5737,139.89,139.86,3.5742]
[1725021675277,26.40738893,140.19,139.83,1.3446]
[1725021675479,120.18470884,139.96,139.86,34.31]
[1725021675678,34.31,139.98,139.88,34.31]
[1725021675884,3.5718,139.97,139.93,3.5724]
[1725021676082,7.1956104,139.97,139.93,3.5724]
[1725021676381,3.572,139.96,139.92,3.5727]
[1725021676683,41.39,139.99,139.93,0.04548628]
[1725021676684,44.99379725,139.99,139.93,0.04548628]
[1725021677083,3.5722,139.95,139.93,0.04548628]
[1725021677478,3.5724,139.94,139.93,0.04548628]
[1725021678174,34.31,139.95,139.87,1.3856]
[1725021678482,34.31,139.92,139.87,1.3856]
[1725021678678,41.39,139.94,139.87,1.3856]
[1725021678879,34.31,139.94,139.87,1.3856]
[1725021679281,0.04644222,139.92,139.89,0.0546237]
[1725021680182,3.68127275,139.92,139.89,0.0546237]
[1725021680586,37.99127275,139.92,139.89,0.0546237]
[1725021680781,0.04644222,139.92,139.89,0.0546237]
[1725021681786,0.04644222,139.92,139.91,3.5731]
[1725021682583,34.31,139.98,139.89,34.31]
[1725021682986,3.572,139.96,139.89,34.31]
[1725021683189,3.55764577,139.97,139.92,3.5727]
[1725021683381,34.31,139.98,139.92,3.5727]
[1725021683580,3.5723,139.95,139.94,0.05328121]
[1725021686179,3.572,139.96,139.94,0.05328121]
[1725021687183,3.5721,139.95,139.94,0.05328121]
[1725021688192,34.31,140.01,139.94,0.05328121]
[1725021688384,37.91128327,140.01,139.94,0.05328121]
[1725021688584,3.5721,139.96,139.94,0.05328121]
[1725021688887,7.08,139.99,139.94,0.05328121]
[1725021689091,41.39,139.99,139.94,0.05328121]
[1725021689394,3.5721,139.95,139.94,0.05328121]
[1725021689592,34.31,139.99,139.94,0.05328121]
[1725021689785,41.39,139.99,139.94,0.05328121]
[1725021690486,3.5721,139.95,139.94,0.05328121]
[1725021695099,41.39,139.99,139.94,0.05328121]
[1725021695294,3.60128327,140.01,139.94,0.05328121]
[1725021695692,3.571,140.0,139.97,3.5715]
[1725021695893,3.571,140.0,139.97,3.62373229]
[1725021696194,3.5707,140.01,139.98,3.5712]
[1725021696385,6.78,140.04,139.97,0.05223229]
[1725021696697,69.67,140.06,139.97,1.34073229]
[1725021696900,3.5699,140.04,140.01,3.5706]
[1725021697193,34.31,140.06,140.0,0.05158226]
[1725021697398,34.31,140.04,140.0,0.05158226]
[1725021697694,3.5656124,140.03,140.0,0.05158226]
[1725021697883,3.5703,140.02,140.0,0.05158226]
[1725021698285,6.78,140.04,140.0,0.05158226]
[1725021698495,3.5705,140.02,140.0,0.05158226]
[1725021699093,3.5706,140.02,140.0,0.05158226]
[1725021699291,6.78,140.04,140.0,0.05158226]
[1725021700297,3.5706,140.01,140.0,0.05158226]
[1725021701500,3.5704,140.02,140.0,0.05158226]
[1725021702305,3.5706,140.01,140.0,0.05158226]
[1725021706792,34.31,140.01,139.93,1.2885]
[1725021706997,3.53414519,140.03,139.88,6.78]
[1725021706998,34.31,139.98,139.88,6.78]
[1725021707194,34.31,139.98,139.91,3.5731]
[1725021707394,3.5724,139.95,139.88,6.78]
[1725021707589,34.31,139.98,139.87,45.0239]
[1725021707795,224.0,140.05,139.95,3.572]
[1725021707796,37.95784946,140.0,139.95,3.572]
[1725021707992,3.5716,139.98,139.91,37.80250785]
[1725021708293,34.31,140.03,139.97,3.5714]
[1725021708493,0.04953519,140.01,139.99,0.05445566]
[1725021708690,3.571,140.0,139.99,0.05445566]
[1725021708890,0.04953519,140.01,139.99,0.05445566]
[1725021709497,0.04953519,140.01,140.0,3.5708]
[1725021710001,0.04953519,140.01,139.99,0.05445566]
[1725021710499,3.5708,140.0,139.99,0.05445566]
[1725021715502,3.62023519,140.01,139.99,0.05445566]
[1725021716507,3.5708,140.0,139.99,0.05445566]
[1725021717394,0.04953519,140.01,139.99,0.05445566]
[1725021718404,3.62023519,140.01,139.99,0.05445566]
[1725021718604,0.04953519,140.01,139.99,0.05445566]
[1725021719711,3.5708,140.0,139.99,0.05445566]
[1725021720206,3.62023519,140.01,139.99,0.05445566]
[1725021720408,0.04953519,140.01,139.99,0.05445566]
[1725021721011,0.04953519,140.01,139.99,3.62545566]
[1725021721407,0.04953519,140.01,139.99,0.05445566]
[1725021721613,0.04953519,140.01,140.0,3.5708]
[1725021722610,34.31,140.07,140.02,3.5703]
[1725021723118,3.5698,140.05,140.02,3.5703]
[1725021723520,34.31,140.07,140.02,3.5703]
[1725021723718,34.31,140.07,140.03,0.04535369]
[1725021724419,3.5698,140.04,140.03,0.04535369]
[1725021726914,3.5712,139.99,139.94,3.9676]
[1725021727124,3.5712,139.99,139.96,3.5717]
[1725021727716,3.571,140.0,139.94,3.9676]
[1725021727912,37.87566496,140.02,139.94,3.9676]
[1725021728120,0.04609225,139.98,139.96,0.05466392]
[1725021728524,0.04609225,139.98,139.97,3.5716]
[1725021728720,3.5706,140.01,139.96,0.05466392]
[1725021729626,3.5706,140.01,139.98,3.5712]
[1725021731333,3.5709,140.0,139.97,3.5715]
[1725021731523,34.31,140.02,139.97,3.5715]
[1725021731722,34.31,140.02,139.98,0.0490937]
[1725021731925,37.85618012,140.02,139.98,0.0490937]
[1725021732237,3.5711,139.99,139.98,0.0490937]
[1725021734133,3.5726,139.94,139.86,7.1487]
[1725021734435,34.31,140.01,139.86,7.1487]
[1725021734436,34.31,139.97,139.87,4.0734]
[1725021734626,34.31,139.97,139.9,3.5733]
[1725021734823,3.552964,139.96,139.87,4.0734]
[1725021735029,34.31,139.97,139.87,4.0734]
[1725021735227,0.04997591,139.93,139.91,0.04899487]
[1725021735721,3.62277591,139.93,139.91,0.04899487]
[1725021736537,0.04997591,139.93,139.91,0.04899487]
[1725021737328,0.04997591,139.93,139.92,3.5729]
[1725021737632,41.09,139.99,139.91,0.04899487]
[1725021737826,34.31,139.99,139.91,0.04899487]
[1725021738026,37.92154391,139.99,139.91,0.04899487]
[1725021738226,3.5718,139.97,139.93,3.5724]
[1725021738430,37.86402501,139.99,139.94,0.04761389]
[1725021739124,44.64402501,139.99,139.94,0.04761389]
[1725021739321,3.572,139.96,139.94,0.04761389]
[1725021739527,44.64402501,139.99,139.94,0.04761389]
[1725021740037,3.5717,139.97,139.94,3.61981389]
[1725021740426,44.64402501,139.99,139.94,3.61981389]
[1725021740633,44.64402501,139.99,139.94,0.04761389]
[1725021741624,3.5721,139.95,139.94,0.04761389]
[1725021744945,37.8821,139.95,139.94,0.04761389]
[1725021745432,3.5721,139.95,139.94,0.04761389]
[1725021745633,6.78,139.98,139.94,0.04761389]
[1725021746428,10.43547856,139.98,139.94,3.61991389]
[1725021746740,6.78,140.0,139.94,0.04761389]
[1725021747035,6.78,140.0,139.92,3.61261161]
[1725021747036,3.59260704,140.01,139.96,0.04574814]
[1725021747333,3.5707,140.01,139.96,0.04574814]
[1725021747932,34.31,140.04,139.96,0.04574814]
[1725021748129,93.5637183,140.08,139.96,0.04574814]
[1725021748329,100.3437183,140.08,140.0,0.04679898]
[1725021748630,134.6537183,140.08,140.01,3.5705]
[1725021748939,34.31,140.06,140.03,0.05038777]
[1725021749343,3.5697,140.05,140.03,0.05038777]
[1725021750243,3.5698,140.04,140.03,0.05038777]
[1725021753237,3.5709,140.0,139.96,6.78]
[1725021753545,34.31,140.01,139.96,6.78]
[1725021753739,37.8808,140.01,139.97,3.5715]
[1725021753942,34.31,140.01,139.97,3.5715]
[1725021754345,0.05114766,140.0,139.98,0.05274163]
[1725021754548,3.62204766,140.0,139.98,0.05274163]
[1725021755750,0.05114766,140.0,139.98,3.62404163]
[1725021757845,0.05114766,140.0,139.99,3.5711]
[1725021758139,34.31,140.05,139.98,0.05274163]
[1725021758340,3.5705,140.02,139.99,3.5709]
[1725021758640,3.5705,140.02,139.96,6.78]
[1725021759039,3.5705,140.02,139.98,0.05039957]
[1725021759441,3.5706,140.01,139.99,3.5709]
[1725021759640,34.31,140.02,139.98,0.05039957]
[1725021759959,34.31,140.02,139.96,6.78]
[1725021759960,34.31,140.0,139.99,0.05452415]
[1725021760241,6.76,140.04,139.98,0.0546981]
[1725021760547,3.5706,140.01,140.0,0.05448161]
[1725021760733,3.5706,140.01,139.93,7.57635069]
[1725021760734,34.31,140.03,139.99,0.04991527]
[1725021760938,34.31,140.03,140.0,0.05190355]
[1725021761138,34.31,140.01,140.0,0.05292243]
[1725021761641,6.76,140.05,140.0,0.05292243]
[1725021761937,93.5637183,140.08,140.0,0.05292243]
[1725021762143,3.5702,140.03,140.0,3.62352243]
[1725021762339,27.42,140.05,140.0,0.05292243]
[1725021762537,27.42,140.03,140.0,0.05292243]
[1725021763340,3.5706,140.01,140.0,0.05292243]
[1725021763842,27.42,140.03,140.0,0.05292243]
[1725021764745,27.42,140.04,140.0,3.62372243]
[1725021764948,34.18,140.07,140.0,3.62372243]
[1725021765141,3.5701,140.03,140.0,3.62362243]
[1725021765457,27.42,140.05,140.0,0.05292243]
[1725021765841,3.57,140.04,140.01,3.5705]
[1725021766544,3.65650732,140.1,140.02,3.5702]
[1725021766734,28.56,140.12,140.05,0.05361227]
[1725021766933,3.5702,140.03,140.01,2.7827]
[1725021767139,3.5702,140.03,140.01,0.0470523]
[1725021767341,27.42,140.04,140.01,0.0470523]
[1725021767644,30.9903,140.02,140.01,0.05171418]
[1725021769651,27.42,140.02,139.93,1.3488]
[1725021769842,3.65544471,140.04,139.93,1.3488]
[1725021769843,3.99804471,140.04,139.93,1.3488]
[1725021770048,3.5713,139.99,139.96,3.5718]
[1725021770642,3.61754208,139.99,139.96,3.62531469]
[1725021771351,3.61754208,139.99,139.96,0.05351469]
[1725021771549,0.04624208,139.99,139.96,0.05351469]
[1725021772052,0.04624208,139.99,139.97,3.5714]
[1725021772643,0.04624208,139.99,139.96,3.62521469]
[1725021773452,3.61734208,139.99,139.96,3.62521469]
[1725021773945,3.5715,139.98,139.96,0.05351469]
[1725021775150,3.61744208,139.99,139.96,3.62521469]
[1725021775353,0.04624208,139.99,139.96,0.05351469]
[1725021776650,3.5716,139.97,139.96,0.05351469]
[1725021777651,37.8716,139.97,139.96,0.05351469]
[1725021780242,3.5716,139.97,139.96,0.05351469]
[1725021780940,0.04624208,139.99,139.96,0.05351469]
[1725021781545,3.5714,139.98,139.96,0.05351469]
[1725021781745,0.04624208,139.99,139.96,3.62521469]
[1725021781951,0.04624208,139.99,139.96,0.05351469]
[1725021782353,0.04624208,139.99,139.97,3.5715]
[1725021782548,3.5716,139.97,139.96,0.05351469]
[1725021782853,0.04624208,139.99,139.96,0.05351469]
[1725021783955,34.34624208,139.99,139.96,0.05351469]
[1725021784149,3.5716,139.97,139.96,0.05351469]
[1725021785255,37.8716,139.97,139.96,0.05351469]
[1725021785650,34.3,139.97,139.86,35.719]
[1725021785860,34.3,139.97,139.87,2.7025]
[1725021786160,34.3,139.94,139.87,2.7025]
[1725021786550,3.5729,139.92,139.9,3.5734]
[1725021786752,0.04903491,139.92,139.9,0.04767841]
[1725021787149,0.04903491,139.92,139.9,3.62087841]
[1725021788551,0.04903491,139.92,139.9,0.04767841]
[1725021788748,34.34903491,139.92,139.9,0.04767841]
[1725021788951,3.5731,139.91,139.9,0.04767841]
[1725021790655,34.3,139.92,139.83,7.61029548]
[1725021791052,34.3,139.92,139.85,3.5745]
[1725021791657,0.04631004,139.9,139.87,0.04869002]
[1725021792062,27.48631004,139.9,139.87,0.04869002]
[1725021793055,3.574,139.88,139.87,0.04869002]
[1725021794058,31.014,139.88,139.87,0.04869002]
[1725021795355,3.574,139.88,139.87,0.04869002]
[1725021798563,0.04631004,139.9,139.87,0.04869002]
[1725021800262,0.04631004,139.9,139.88,3.5738]
[1725021800658,0.04631004,139.9,139.87,0.04869002]
[1725021800858,6.76,139.97,139.88,31.04711655]
[1725021801062,6.76,139.97,139.9,27.44]
[1725021801359,27.44,139.98,139.9,27.44]
[1725021801564,34.2,139.98,139.9,27.44]
[1725021801766,27.44,139.98,139.92,3.5727]
[1725021801961,0.0475929,139.95,139.93,0.04525282]
[1725021802555,31.0368371,140.02,139.94,27.44]
[1725021802757,27.44,140.02,139.94,27.44]
[1725021802962,34.2,140.02,139.94,27.44]
[1725021803168,3.64535706,140.01,139.94,27.44]
[1725021803362,3.5711,139.99,139.94,27.44]
[1725021803559,0.05372294,139.98,139.95,0.04873259]
[1725021803862,0.05372294,139.98,139.96,3.5718]
[1725021805163,0.05372294,139.98,139.95,1.46563259]
[1725021805362,0.05372294,139.98,139.97,3.5716]
[1725021806162,93.91404462,140.09,140.01,3.5706]
[1725021806363,93.91404462,140.09,140.0,27.44]
[1725021806771,3.5695,140.06,140.02,3.5702]
[1725021806957,100.67404462,140.09,140.0,27.44]
[1725021807157,3.5695,140.06,140.03,0.04750047]
[1725021807463,128.11404462,140.09,140.03,0.04750047]
[1725021807862,27.44,140.07,140.03,0.04750047]
[1725021808064,27.44,140.05,140.03,0.04750047]
[1725021808572,3.5698,140.04,140.03,0.04750047]
[1725021808965,7.13046653,140.04,140.03,0.04750047]
[1725021810260,3.56066653,140.04,139.96,1.3845]
[1725021810467,27.44,140.01,139.96,1.3845]
[1725021810762,3.5709,140.0,139.96,1.3845]
[1725021810967,3.5709,140.0,139.96,4.9563]
[1725021811370,3.5714,139.98,139.97,0.04516279]
[1725021813772,3.61645583,139.99,139.97,0.04516279]
[1725021814473,3.5714,139.98,139.97,0.04516279]
[1725021816177,3.5723,139.95,139.91,1.3442]
[1725021816376,27.44,139.96,139.91,1.3442]
[1725021817274,3.6195701,139.95,139.92,0.05308871]
[1725021818174,0.0472701,139.95,139.92,0.05308871]
[1725021818479,0.0472701,139.95,139.92,3.62578871]
[1725021819072,3.6195701,139.95,139.92,3.62578871]
[1725021819272,3.5438911,139.95,139.92,0.05308871]
[1725021819481,30.9838911,139.95,139.92,0.05308871]
[1725021820280,3.5726,139.93,139.92,0.05308871]
[1725021821283,31.0125,139.94,139.92,0.05308871]
[1725021821579,27.44,139.94,139.92,0.05308871]
[1725021821980,3.5726,139.93,139.92,0.05308871]
[1725021822977,3.5724,139.94,139.92,3.62598871]
[1725021823179,0.0472701,139.95,139.92,3.62598871]
[1725021823678,3.6195701,139.95,139.92,3.62598871]
[1725021824473,0.0472701,139.95,139.93,3.5724]
[1725021825075,0.0472701,139.95,139.93,3.5726]
[1725021825279,0.0472701,139.95,139.92,0.05308871]
[1725021825778,0.0472701,139.95,139.93,3.5726]
[1725021826082,0.0472701,139.95,139.92,0.05308871]
[1725021826581,0.0472701,139.95,139.94,3.5724]
[1725021828575,3.5716,139.97,139.95,3.572]
[1725021828780,6.74,140.01,139.93,30.1379]
[1725021829187,27.44,140.02,139.93,30.1379]
[1725021829384,34.18,140.02,139.93,30.1379]
[1725021829680,7.1397,140.04,139.93,30.1379]
[1725021829681,3.5715,139.98,139.96,0.05057037]
[1725021829988,0.05427038,139.99,139.96,0.05057037]
[1725021830179,3.5714,139.98,139.96,0.05057037]
[1725021830382,0.05427038,139.99,139.96,0.05057037]
[1725021830788,0.05427038,139.99,139.97,3.5715]
[1725021831079,0.05427038,139.99,139.96,0.05057037]
[1725021831479,3.62537038,139.99,139.96,0.05057037]
[1725021831674,0.05427038,139.99,139.96,0.05057037]
[1725021832285,0.05427038,139.99,139.98,3.5714]
[1725021834782,0.05427038,139.99,139.97,3.5714]
[1725021835286,0.05427038,139.99,139.98,3.5714]
[1725021836093,0.05427038,139.99,139.97,3.5715]
[1725021836788,0.05427038,139.99,139.98,3.5714]
[1725021838089,0.05427038,139.99,139.96,0.05057037]
[1725021838586,3.5715,139.98,139.96,0.05057037]
[1725021838998,0.05427038,139.99,139.96,0.05057037]
[1725021840689,3.5716,139.97,139.96,0.05057037]
[1725021842107,3.5714,139.98,139.96,0.05057037]
[1725021842400,0.05427038,139.99,139.96,0.05057037]
[1725021842795,3.5716,139.97,139.96,0.05057037]
[1725021842999,0.05427038,139.99,139.96,0.05057037]
[1725021843196,3.62557038,139.99,139.97,3.5715]
[1725021843505,0.05427038,139.99,139.96,0.05057037]
[1725021845899,3.62547038,139.99,139.96,3.62227037]
[1725021846203,0.05427038,139.99,139.96,0.05057037]
[1725021847604,34.18,140.05,139.96,0.05057037]
[1725021847898,27.44,140.05,139.95,37.70861759]
[1725021848105,3.5704,140.02,139.99,3.5709]
[1725021848303,3.5933683,140.04,139.95,37.70861759]
[1725021848597,3.5703,140.03,140.0,3.5707]
[1725021849001,27.44,140.07,140.0,0.05495982]
[1725021849299,27.44,140.07,140.01,3.5704]
[1725021849599,3.57,140.04,140.01,3.5704]
[1725021851001,94.15854462,140.09,140.0,2.68435982]
[1725021851002,121.35404462,140.09,140.0,2.68435982]
[1725021851200,128.09404462,140.09,140.03,0.04667718]
[1725021851401,121.35404462,140.09,140.03,0.04667718]
[1725021851594,27.44,140.05,140.03,0.04667718]
[1725021852300,3.5698,140.04,140.03,0.04667718]
[1725021852696,27.44,140.07,140.03,0.04667718]
[1725021853007,3.5698,140.05,140.03,0.04667718]
[1725021853408,27.44,140.07,140.03,0.04667718]
[1725021853600,27.44,140.07,140.03,3.61667718]
[1725021853801,27.44,140.07,140.03,0.04667718]
[1725021854003,3.5697,140.05,140.03,0.04667718]
[1725021854903,6.72,140.09,140.03,0.04667718]
[1725021855209,27.44,140.1,140.03,0.04667718]
[1725021856106,3.569,140.08,140.04,3.5696]
[1725021856307,27.44,140.1,140.03,0.04667718]
[1725021856602,27.44,140.08,140.03,0.04667718]
[1725021856804,27.44,140.08,140.04,0.04987592]
[1725021857006,3.5693,140.07,140.04,3.61967592]
[1725021857399,3.5693,140.07,140.04,0.04987592]
[1725021857598,3.5693,140.06,140.04,0.04987592]
[1725021857896,27.44,140.08,140.04,0.04987592]
[1725021858096,10.97,140.06,140.04,0.04987592]
[1725021858299,14.5395,140.06,140.04,0.04987592]
[1725021858603,10.97,140.06,140.04,0.04987592]
[1725021858800,14.5396,140.05,140.04,0.04987592]
[1725021859505,3.5696,140.05,140.04,0.04987592]
[1725021861205,3.5694,140.06,140.04,0.04987592]
[1725021861401,27.41,140.07,140.04,0.04987592]
[1725021861604,27.41,140.05,140.04,0.04987592]
[1725021861798,30.9796,140.05,140.04,0.04987592]
[1725021867416,27.41,140.05,139.9,7.1467]
[1725021867613,27.41,140.05,139.95,2.6929]
[1725021867614,27.41,140.01,139.95,2.6929]
[1725021867821,30.91701164,140.03,139.98,3.5713]
[1725021868016,27.41,140.03,139.98,3.5713]
[1725021868327,27.41,140.01,139.99,0.05018584]
[1725021868523,0.04996158,140.02,139.99,0.05018584]
[1725021868722,3.6090982,140.02,139.99,0.05018584]
[1725021869217,3.5708,140.0,139.99,0.05018584]
[1725021870129,27.41,140.0,139.95,2.6929]
[1725021870418,3.55913662,140.02,139.9,1.3439]
[1725021870419,27.41,139.97,139.9,1.3439]
[1725021870625,3.5723,139.95,139.91,3.573]
[1725021870824,27.41,139.92,139.81,3.65722039]
[1725021871019,27.41,139.92,139.85,2.6587]
[1725021871223,0.04872902,139.9,139.87,0.04815731]
[1725021871723,3.5739,139.88,139.87,0.04815731]
[1725021872429,31.03232902,139.9,139.87,0.04815731]
[1725021873238,0.04872902,139.9,139.87,0.04815731]
[1725021875542,27.41,139.96,139.88,27.41]
[1725021875729,27.41,139.96,139.89,3.55524764]
[1725021875936,3.5726,139.94,139.9,3.5732]
[1725021876142,30.95667216,139.96,139.88,27.41]
[1725021876143,27.41,139.95,139.88,3.49629127]
[1725021876341,3.5728,139.93,139.89,3.5736]